[Event "Live Chess"]
[Site "Chess.com"]
[Date "2023.05.21"]
[Round "-"]
[White "ChessClubLive"]
[Black "whitedjohn"]
[Result "0-1"]
[WhiteElo "1706"]
[BlackElo "1674"]
[TimeControl "300"]
[EndTime "6:18:56 PDT"]
[Termination "whitedjohn won by resignation"]

1. e4 {[%clk 0:04:56.3]} 1... Nf6 {[%clk 0:04:59.2]} 2. Nc3 {[%clk 0:04:53.6]}
2... d5 {[%clk 0:04:57.6]} 3. e5 {[%clk 0:04:49.8]} 3... Nfd7 {[%clk 0:04:56.4]}
4. d4 {[%clk 0:04:48.7]} 4... e6 {[%clk 0:04:55.2]} 5. f4 {[%clk 0:04:47.2]}
5... c5 {[%clk 0:04:53.9]} 6. Nf3 {[%clk 0:04:37.4]} 6... Nc6 {[%clk 0:04:53]}
7. Bb5 {[%clk 0:04:25.9]} 7... a6 {[%clk 0:04:51.1]} 8. Bxc6 {[%clk 0:04:25]}
8... bxc6 {[%clk 0:04:51]} 9. O-O {[%clk 0:04:23.4]} 9... cxd4 {[%clk
0:04:47.7]} 10. Nxd4 {[%clk 0:04:22.2]} 10... c5 {[%clk 0:04:46.9]} 11. Nf3
{[%clk 0:04:12.2]} 11... Bb7 {[%clk 0:04:44.4]} 12. Qe2 {[%clk 0:03:50.2]} 12...
Be7 {[%clk 0:04:39.3]} 13. g4 {[%clk 0:03:44.1]} 13... O-O {[%clk 0:04:37.7]}
14. f5 {[%clk 0:03:43.4]} 14... Qc7 {[%clk 0:04:17.4]} 15. Bf4 {[%clk
0:03:31.3]} 15... Qc6 {[%clk 0:03:56.4]} 16. Rae1 {[%clk 0:03:11.5]} 16... d4
{[%clk 0:03:45.1]} 17. Ne4 {[%clk 0:03:10]} 17... Qxe4 {[%clk 0:03:36.6]} 18.
Qxe4 {[%clk 0:03:03]} 18... Bxe4 {[%clk 0:03:36.1]} 19. Rxe4 {[%clk 0:02:58.9]}
19... Rab8 {[%clk 0:03:22.9]} 20. b3 {[%clk 0:02:52.9]} 20... Rb6 {[%clk
0:03:14.2]} 21. h4 {[%clk 0:02:43.7]} 21... a5 {[%clk 0:03:07.9]} 22. a4 {[%clk
0:02:27.2]} 22... f6 {[%clk 0:02:56]} 23. exf6 {[%clk 0:02:18.5]} 23... Nxf6
{[%clk 0:02:50]} 24. fxe6 {[%clk 0:01:48.8]} 24... Nxe4 {[%clk 0:02:46.8]} 25.
Bc7 {[%clk 0:01:46.1]} 25... Ra6 {[%clk 0:02:34.9]} 26. Kg2 {[%clk 0:01:15.4]}
26... Bd6 {[%clk 0:02:32.3]} 27. Bxd6 {[%clk 0:01:06.8]} 27... Rxd6 {[%clk
0:02:29.4]} 28. Re1 {[%clk 0:01:04.5]} 28... Rxe6 {[%clk 0:02:25.3]} 29. Ng5
{[%clk 0:01:02]} 29... Nxg5 {[%clk 0:02:23.7]} 0-1

[Event "Live Chess"]
[Site "Chess.com"]
[Date "2023.05.21"]
[Round "-"]
[White "f4nomore"]
[Black "GEMdzq"]
[Result "0-1"]
[WhiteElo "1392"]
[BlackElo "2259"]
[TimeControl "300"]
[EndTime "6:18:59 PDT"]
[Termination "GEMdzq won by checkmate"]

1. b3 {[%clk 0:04:58.5]} 1... e5 {[%clk 0:04:58.2]} 2. Bb2 {[%clk 0:04:57.4]}
2... Nc6 {[%clk 0:04:57.8]} 3. e3 {[%clk 0:04:55.7]} 3... d5 {[%clk 0:04:57.4]}
4. Nc3 {[%clk 0:04:53.6]} 4... Nf6 {[%clk 0:04:55.4]} 5. Nge2 {[%clk 0:04:52.4]}
5... d4 {[%clk 0:04:45.8]} 6. exd4 {[%clk 0:04:50.5]} 6... exd4 {[%clk
0:04:45.7]} 7. Nb5 {[%clk 0:04:45.4]} 7... Bc5 {[%clk 0:04:41.3]} 8. g3 {[%clk
0:04:34.7]} 8... a6 {[%clk 0:04:24.1]} 9. Na3 {[%clk 0:04:32.5]} 9... d3 {[%clk
0:04:11.5]} 10. cxd3 {[%clk 0:04:28.8]} 10... Ng4 {[%clk 0:04:09.3]} 11. d4
{[%clk 0:04:08.5]} 11... Nxd4 {[%clk 0:04:05.5]} 12. Nxd4 {[%clk 0:03:41.8]}
12... Bxd4 {[%clk 0:04:05.4]} 13. Qe2+ {[%clk 0:03:36.1]} 13... Be6 {[%clk
0:04:02.2]} 14. Bxd4 {[%clk 0:03:28.7]} 14... Qxd4 {[%clk 0:04:02.1]} 15. Nc2
{[%clk 0:03:17.2]} 15... Qb2 {[%clk 0:04:00]} 16. Qd3 {[%clk 0:03:00.2]} 16...
Rd8 {[%clk 0:03:57.2]} 17. Qc3 {[%clk 0:02:54.9]} 17... Qxc3 {[%clk 0:03:50.4]}
18. dxc3 {[%clk 0:02:52.8]} 18... Ne5 {[%clk 0:03:48]} 19. Nd4 {[%clk 0:02:50]}
19... Bd5 {[%clk 0:03:44.6]} 20. Rg1 {[%clk 0:02:45.4]} 20... c5 {[%clk
0:03:42.6]} 21. Nf5 {[%clk 0:02:36.4]} 21... Nf3+ {[%clk 0:03:40.2]} 22. Ke2
{[%clk 0:02:28.5]} 22... Nxg1+ {[%clk 0:03:39.3]} 23. Ke3 {[%clk 0:02:18.1]}
23... Nf3 {[%clk 0:03:27.2]} 24. Nxg7+ {[%clk 0:02:14.6]} 24... Kf8 {[%clk
0:03:26.1]} 25. Nf5 {[%clk 0:02:09.4]} 25... Re8+ {[%clk 0:03:19.9]} 26. Kf4
{[%clk 0:02:07.5]} 26... Re4+ {[%clk 0:03:12]} 27. Kxf3 {[%clk 0:01:59.2]} 27...
Re1+ {[%clk 0:03:11.1]} 28. Kg4 {[%clk 0:01:52.6]} 28... Rxa1 {[%clk 0:03:11]}
29. Be2 {[%clk 0:01:42.2]} 29... Be6 {[%clk 0:03:10.9]} 30. Kg5 {[%clk
0:01:39.4]} 30... Bxf5 {[%clk 0:03:09.3]} 31. Kxf5 {[%clk 0:01:37.7]} 31... Rxa2
{[%clk 0:03:09.2]} 32. Bc4 {[%clk 0:01:35.1]} 32... Rxf2+ {[%clk 0:03:09.1]} 33.
Kg4 {[%clk 0:01:33.2]} 33... Ke7 {[%clk 0:03:09]} 34. h4 {[%clk 0:01:31.1]}
34... Rg8+ {[%clk 0:03:07.3]} 35. Kh5 {[%clk 0:01:27.1]} 35... Rf5+ {[%clk
0:03:04.5]} 36. Kh6 {[%clk 0:01:24.2]} 36... Rg6+ {[%clk 0:03:04]} 37. Kxh7
{[%clk 0:01:22.5]} 37... Rh5# {[%clk 0:03:03.9]} 0-1

[Event "Live Chess"]
[Site "Chess.com"]
[Date "2023.05.21"]
[Round "-"]
[White "TheSmoulderingMaster"]
[Black "ossie57"]
[Result "1-0"]
[WhiteElo "1653"]
[BlackElo "1841"]
[TimeControl "300"]
[EndTime "6:19:03 PDT"]
[Termination "TheSmoulderingMaster won by resignation"]

1. e4 {[%clk 0:04:58.5]} 1... c5 {[%clk 0:04:57.8]} 2. Nf3 {[%clk 0:04:55.7]}
2... d6 {[%clk 0:04:57.3]} 3. d4 {[%clk 0:04:54.9]} 3... cxd4 {[%clk 0:04:57.2]}
4. Nxd4 {[%clk 0:04:54.2]} 4... Nf6 {[%clk 0:04:57]} 5. Nc3 {[%clk 0:04:53.5]}
5... a6 {[%clk 0:04:56.6]} 6. Be3 {[%clk 0:04:52.6]} 6... e5 {[%clk 0:04:55.8]}
7. Nb3 {[%clk 0:04:51.3]} 7... Be7 {[%clk 0:04:54.4]} 8. f3 {[%clk 0:04:50.3]}
8... O-O {[%clk 0:04:51.2]} 9. Qd2 {[%clk 0:04:49.3]} 9... Qc7 {[%clk
0:04:45.2]} 10. O-O-O {[%clk 0:04:47.5]} 10... b5 {[%clk 0:04:43.9]} 11. g4
{[%clk 0:04:46]} 11... Rd8 {[%clk 0:04:35.4]} 12. h4 {[%clk 0:04:44.2]} 12...
Bb7 {[%clk 0:04:30.3]} 13. h5 {[%clk 0:04:43.4]} 13... b4 {[%clk 0:04:25.6]} 14.
Nd5 {[%clk 0:04:41.7]} 14... Nxd5 {[%clk 0:04:24.9]} 15. exd5 {[%clk 0:04:41]}
15... a5 {[%clk 0:04:22.1]} 16. g5 {[%clk 0:04:36.4]} 16... a4 {[%clk 0:04:21]}
17. Na1 {[%clk 0:04:33.7]} 17... b3 {[%clk 0:04:20.4]} 18. axb3 {[%clk
0:04:29.9]} 18... axb3 {[%clk 0:04:19.6]} 19. Nxb3 {[%clk 0:04:29.4]} 19... Nd7
{[%clk 0:04:07]} 20. g6 {[%clk 0:04:27.4]} 20... Nc5 {[%clk 0:04:05.4]} 21.
gxf7+ {[%clk 0:04:25.6]} 21... Kxf7 {[%clk 0:04:03.9]} 22. Bxc5 {[%clk 0:04:24]}
22... Qxc5 {[%clk 0:04:00.9]} 23. Qd3 {[%clk 0:03:59.1]} 23... Qc8 {[%clk
0:03:54.3]} 24. Qxh7 {[%clk 0:03:55.9]} 24... Bg5+ {[%clk 0:03:39.8]} 25. Kb1
{[%clk 0:03:52.3]} 25... Bf6 {[%clk 0:03:30.3]} 26. h6 {[%clk 0:03:47.4]} 26...
Rh8 {[%clk 0:03:27.9]} 27. Qe4 {[%clk 0:03:37.3]} 27... Qd7 {[%clk 0:03:08.6]}
28. Bh3 {[%clk 0:03:31.6]} 28... Qa4 {[%clk 0:03:06.4]} 29. Be6+ {[%clk
0:03:28.9]} 29... Ke7 {[%clk 0:03:05.6]} 30. hxg7 {[%clk 0:03:14.8]} 30... Qa2+
{[%clk 0:02:48.3]} 31. Kc1 {[%clk 0:03:12.9]} 31... Bg5+ {[%clk 0:02:46.4]} 32.
f4 {[%clk 0:03:10]} 32... Bxf4+ {[%clk 0:02:44.6]} 33. Qxf4 {[%clk 0:03:08.4]}
33... exf4 {[%clk 0:02:43.7]} 34. gxh8=Q {[%clk 0:03:05.7]} 34... Rxh8 {[%clk
0:02:33.7]} 35. Rxh8 {[%clk 0:03:03.8]} 35... Qa7 {[%clk 0:02:20.2]} 36. Rdh1
{[%clk 0:02:58.8]} 36... Qe3+ {[%clk 0:02:11.1]} 37. Kb1 {[%clk 0:02:57.5]}
37... Kf6 {[%clk 0:02:04.5]} 38. Rf8+ {[%clk 0:02:49.1]} 38... Ke5 {[%clk
0:02:03.8]} 39. Rh5+ {[%clk 0:02:46.1]} 39... Ke4 {[%clk 0:02:03.2]} 40. Bf5+
{[%clk 0:02:42.7]} 40... Ke5 {[%clk 0:01:57.9]} 41. Re8+ {[%clk 0:02:39.7]}
41... Kf6 {[%clk 0:01:52.6]} 42. Rxe3 {[%clk 0:02:38.1]} 1-0

[Event "Live Chess"]
[Site "Chess.com"]
[Date "2023.05.21"]
[Round "-"]
[White "Bot_Boy"]
[Black "CheckThis4"]
[Result "0-1"]
[WhiteElo "332"]
[BlackElo "2521"]
[TimeControl "300"]
[EndTime "6:19:19 PDT"]
[Termination "CheckThis4 won by resignation"]

1. e4 {[%clk 0:04:56.7]} 1... d5 {[%clk 0:04:58.7]} 2. e5 {[%clk 0:04:52.1]}
2... c5 {[%clk 0:04:56.9]} 3. Nf3 {[%clk 0:04:51]} 3... Nc6 {[%clk 0:04:55.7]}
4. Bb5 {[%clk 0:04:46.9]} 4... Bg4 {[%clk 0:04:52.9]} 5. Bxc6+ {[%clk
0:04:41.7]} 5... bxc6 {[%clk 0:04:51]} 6. O-O {[%clk 0:04:31.3]} 6... e6 {[%clk
0:04:49.8]} 7. d3 {[%clk 0:04:21.8]} 7... Ne7 {[%clk 0:04:45.7]} 8. Nbd2 {[%clk
0:04:05.5]} 8... Ng6 {[%clk 0:04:42.3]} 9. g3 {[%clk 0:03:56.9]} 9... Nxe5
{[%clk 0:04:38]} 10. a4 {[%clk 0:03:29.4]} 10... Nxf3+ {[%clk 0:04:32.9]} 11.
Nxf3 {[%clk 0:03:26.1]} 11... Qf6 {[%clk 0:04:31.8]} 12. Kg2 {[%clk 0:02:38.6]}
12... Qf5 {[%clk 0:04:28]} 13. Kh1 {[%clk 0:01:48]} 13... Bxf3+ {[%clk
0:04:23.5]} 14. Qxf3 {[%clk 0:01:43.8]} 14... Qxf3+ {[%clk 0:04:22.8]} 15. Kg1
{[%clk 0:01:39.1]} 15... h5 {[%clk 0:04:22.7]} 16. h4 {[%clk 0:01:31.3]} 16...
Bd6 {[%clk 0:04:20.7]} 17. Bf4 {[%clk 0:00:42.3]} 17... Bxf4 {[%clk 0:04:18.5]}
18. Kh2 {[%clk 0:00:32.2]} 18... Rh6 {[%clk 0:04:18.4]} 19. gxf4 {[%clk
0:00:27.4]} 19... Qxf4+ {[%clk 0:04:15.1]} 0-1

[Event "Live Chess"]
[Site "Chess.com"]
[Date "2023.05.21"]
[Round "-"]
[White "Ferrarifan27"]
[Black "Berdgross"]
[Result "1-0"]
[WhiteElo "2067"]
[BlackElo "697"]
[TimeControl "300"]
[EndTime "6:19:23 PDT"]
[Termination "Ferrarifan27 won by resignation"]

1. e4 {[%clk 0:04:58.6]} 1... e5 {[%clk 0:04:59.9]} 2. Nf3 {[%clk 0:04:54.3]}
2... d5 {[%clk 0:04:59.8]} 3. Nxe5 {[%clk 0:04:52.3]} 3... Qe7 {[%clk
0:04:56.3]} 4. d4 {[%clk 0:04:50.2]} 4... dxe4 {[%clk 0:04:54.4]} 5. Nc3 {[%clk
0:04:43.8]} 5... f6 {[%clk 0:04:49.9]} 6. Qh5+ {[%clk 0:04:37.1]} 6... g6 {[%clk
0:04:43.1]} 7. Nxg6 {[%clk 0:04:28.9]} 7... Bg7 {[%clk 0:04:21.2]} 8. Nxe7+
{[%clk 0:04:25.9]} 8... Kxe7 {[%clk 0:04:15]} 9. Nd5+ {[%clk 0:04:15.2]} 9...
Ke6 {[%clk 0:04:08.3]} 10. Nxc7+ {[%clk 0:04:11.7]} 10... Kd7 {[%clk 0:04:00.5]}
11. Nxa8 {[%clk 0:04:09.7]} 1-0

[Event "Live Chess"]
[Site "Chess.com"]
[Date "2023.05.21"]
[Round "-"]
[White "KeithArkell"]
[Black "seasidecastle27"]
[Result "1-0"]
[WhiteElo "2482"]
[BlackElo "1882"]
[TimeControl "300"]
[EndTime "6:19:36 PDT"]
[Termination "KeithArkell won by resignation"]

1. d4 {[%clk 0:04:57.2]} 1... d6 {[%clk 0:04:57.3]} 2. g3 {[%clk 0:04:55.7]}
2... Nf6 {[%clk 0:04:50.8]} 3. Bg2 {[%clk 0:04:54.8]} 3... g6 {[%clk 0:04:49.2]}
4. Nf3 {[%clk 0:04:53.4]} 4... Bg7 {[%clk 0:04:48.1]} 5. c4 {[%clk 0:04:52.3]}
5... c6 {[%clk 0:04:45.4]} 6. O-O {[%clk 0:04:51.2]} 6... O-O {[%clk 0:04:43.6]}
7. Nc3 {[%clk 0:04:50.4]} 7... Bg4 {[%clk 0:04:40.3]} 8. h3 {[%clk 0:04:48.9]}
8... Bd7 {[%clk 0:04:37.8]} 9. e4 {[%clk 0:04:46.8]} 9... Qc8 {[%clk 0:04:34.5]}
10. Kh2 {[%clk 0:04:45.9]} 10... Na6 {[%clk 0:04:30.6]} 11. Be3 {[%clk 0:04:39]}
11... c5 {[%clk 0:04:23.7]} 12. Nd5 {[%clk 0:04:27]} 12... Nxd5 {[%clk
0:04:15.9]} 13. cxd5 {[%clk 0:04:26.1]} 13... cxd4 {[%clk 0:04:11.6]} 14. Bxd4
{[%clk 0:04:24.5]} 14... Qc4 {[%clk 0:03:58.6]} 15. b3 {[%clk 0:04:20.6]} 15...
Qb5 {[%clk 0:03:39.5]} 16. Bxg7 {[%clk 0:04:12.5]} 16... Kxg7 {[%clk 0:03:37.5]}
17. Rc1 {[%clk 0:04:08.7]} 17... Rac8 {[%clk 0:03:35]} 18. Nd4 {[%clk
0:04:07.5]} 18... Qb4 {[%clk 0:03:16.8]} 19. Qd3 {[%clk 0:04:00]} 19... Nc5
{[%clk 0:03:10.1]} 20. Qe3 {[%clk 0:03:57.8]} 20... Qa3 {[%clk 0:03:01]} 21. h4
{[%clk 0:03:44.1]} 21... h5 {[%clk 0:02:36.5]} 22. Bh3 {[%clk 0:03:33.9]} 22...
Bxh3 {[%clk 0:02:33.2]} 23. Kxh3 {[%clk 0:03:33.4]} 23... Nd7 {[%clk 0:02:30.6]}
24. Nf5+ {[%clk 0:02:45.4]} 24... gxf5 {[%clk 0:02:18.8]} 25. Qg5+ {[%clk
0:02:44.2]} 25... Kh8 {[%clk 0:02:10.7]} 26. Qxh5+ {[%clk 0:02:42.3]} 26... Kg7
{[%clk 0:02:04.7]} 27. Qg5+ {[%clk 0:02:41.4]} 27... Kh8 {[%clk 0:01:58.6]} 28.
Rxc8 {[%clk 0:02:31.8]} 28... Rxc8 {[%clk 0:01:55]} 29. Qxe7 {[%clk 0:02:30.9]}
29... Nf8 {[%clk 0:01:45.9]} 30. Qf6+ {[%clk 0:02:18.1]} 30... Kg8 {[%clk
0:01:43.7]} 31. Qg5+ {[%clk 0:02:15.7]} 31... Kh8 {[%clk 0:01:38]} 32. Qxf5
{[%clk 0:02:11.6]} 32... Qc5 {[%clk 0:01:34.9]} 33. Qxf7 {[%clk 0:02:04.6]}
33... Qc7 {[%clk 0:01:32]} 34. Qf6+ {[%clk 0:02:01.4]} 34... Kg8 {[%clk
0:01:28.4]} 35. Rd1 {[%clk 0:01:55.7]} 35... Qd7+ {[%clk 0:01:26.3]} 36. Kg2
{[%clk 0:01:52]} 36... Rc2 {[%clk 0:01:22.1]} 37. e5 {[%clk 0:01:50]} 37... dxe5
{[%clk 0:01:16.3]} 38. Qxe5 {[%clk 0:01:49]} 38... Qf7 {[%clk 0:01:11.9]} 39.
Qg5+ {[%clk 0:01:43.5]} 39... Kh8 {[%clk 0:01:08.3]} 40. Qe3 {[%clk 0:01:38.8]}
40... Qf6 {[%clk 0:01:03.4]} 41. Rd4 {[%clk 0:01:36]} 41... Rc3 {[%clk
0:00:58.7]} 42. Qxc3 {[%clk 0:01:33.8]} 1-0

[Event "Live Chess"]
[Site "Chess.com"]
[Date "2023.05.21"]
[Round "-"]
[White "JoRoSaR"]
[Black "AMCWAML"]
[Result "1/2-1/2"]
[WhiteElo "1695"]
[BlackElo "2283"]
[TimeControl "300"]
[EndTime "6:19:57 PDT"]
[Termination "Game drawn - insufficient material"]

1. e4 {[%clk 0:04:59.7]} 1... c5 {[%clk 0:04:58.8]} 2. Nf3 {[%clk 0:04:58.8]}
2... d6 {[%clk 0:04:57.7]} 3. c3 {[%clk 0:04:57.3]} 3... Nf6 {[%clk 0:04:56.8]}
4. Be2 {[%clk 0:04:56.5]} 4... g6 {[%clk 0:04:55.1]} 5. d4 {[%clk 0:04:54.9]}
5... Bg7 {[%clk 0:04:54.8]} 6. dxc5 {[%clk 0:04:53]} 6... O-O {[%clk 0:04:50.4]}
7. cxd6 {[%clk 0:04:51.4]} 7... Nxe4 {[%clk 0:04:49.9]} 8. dxe7 {[%clk
0:04:48.8]} 8... Qxe7 {[%clk 0:04:48.4]} 9. O-O {[%clk 0:04:46]} 9... Nc6 {[%clk
0:04:47.5]} 10. Qc2 {[%clk 0:04:43.7]} 10... Bf5 {[%clk 0:04:45.1]} 11. Bd3
{[%clk 0:04:41.8]} 11... Rad8 {[%clk 0:04:41.4]} 12. Re1 {[%clk 0:04:40.1]}
12... Rxd3 {[%clk 0:04:23.2]} 13. Qxd3 {[%clk 0:04:34.1]} 13... Nxf2 {[%clk
0:03:53.5]} 14. Qxf5 {[%clk 0:04:20.1]} 14... Qxe1+ {[%clk 0:03:43.1]} 15. Nxe1
{[%clk 0:04:18.6]} 15... gxf5 {[%clk 0:03:41]} 16. Kxf2 {[%clk 0:04:17.1]} 16...
Re8 {[%clk 0:03:25.3]} 17. Be3 {[%clk 0:04:00.1]} 17... Ne5 {[%clk 0:03:22.8]}
18. h3 {[%clk 0:03:57.2]} 18... b6 {[%clk 0:03:15]} 19. Nd2 {[%clk 0:03:56]}
19... Bf6 {[%clk 0:03:11.1]} 20. Nef3 {[%clk 0:03:55.1]} 20... Nd3+ {[%clk
0:03:09.7]} 21. Ke2 {[%clk 0:03:52.4]} 21... Nxb2 {[%clk 0:03:03.5]} 22. Rb1
{[%clk 0:03:51.4]} 22... Na4 {[%clk 0:03:02.7]} 23. c4 {[%clk 0:03:39.3]} 23...
Nc3+ {[%clk 0:03:01.5]} 24. Kd3 {[%clk 0:03:36.8]} 24... Nxb1 {[%clk 0:02:55.5]}
25. Nxb1 {[%clk 0:03:36.7]} 25... Rd8+ {[%clk 0:02:53.1]} 26. Kc2 {[%clk
0:03:33]} 26... Kg7 {[%clk 0:02:47.9]} 27. Nc3 {[%clk 0:03:20.5]} 27... Rc8
{[%clk 0:02:42.1]} 28. Kb3 {[%clk 0:03:18.2]} 28... Re8 {[%clk 0:02:25.3]} 29.
Nd5 {[%clk 0:03:17.2]} 29... Bd8 {[%clk 0:02:22.8]} 30. Bd4+ {[%clk 0:03:13.3]}
30... f6 {[%clk 0:02:20.1]} 31. Nh4 {[%clk 0:03:09.8]} 31... Re2 {[%clk
0:02:15.6]} 32. Nxf5+ {[%clk 0:03:06.8]} 32... Kf7 {[%clk 0:02:12.7]} 33. g4
{[%clk 0:02:57.1]} 33... a5 {[%clk 0:02:06.2]} 34. Nh6+ {[%clk 0:02:55.8]} 34...
Kg7 {[%clk 0:02:00]} 35. Nf5+ {[%clk 0:02:51.6]} 35... Kf7 {[%clk 0:01:59.1]}
36. Nxb6 {[%clk 0:02:46.7]} 36... Rh2 {[%clk 0:01:47.2]} 37. h4 {[%clk
0:02:45.6]} 37... Rg2 {[%clk 0:01:44.1]} 38. Nd5 {[%clk 0:02:43.7]} 38... a4+
{[%clk 0:01:35.8]} 39. Ka3 {[%clk 0:02:37.3]} 39... Ke6 {[%clk 0:01:23.8]} 40.
Nde3 {[%clk 0:02:34.2]} 40... Rh2 {[%clk 0:01:18.6]} 41. c5 {[%clk 0:02:27.6]}
41... Bc7 {[%clk 0:01:14.6]} 42. Nf1 {[%clk 0:02:13.4]} 42... Rh1 {[%clk
0:01:10.8]} 43. N1e3 {[%clk 0:02:11.4]} 43... Rh3 {[%clk 0:01:02.9]} 44. Kxa4
{[%clk 0:02:08.7]} 44... Rh2 {[%clk 0:01:01.7]} 45. a3 {[%clk 0:02:07.7]} 45...
h5 {[%clk 0:01:00.1]} 46. Ng7+ {[%clk 0:02:03.5]} 46... Kf7 {[%clk 0:00:58.9]}
47. Nxh5 {[%clk 0:02:02.7]} 47... Rxh4 {[%clk 0:00:58.5]} 48. Kb5 {[%clk
0:01:57.2]} 48... Rh1 {[%clk 0:00:51.6]} 49. a4 {[%clk 0:01:56.5]} 49... Rd1
{[%clk 0:00:50.7]} 50. Bc3 {[%clk 0:01:49.5]} 50... Rd3 {[%clk 0:00:48.7]} 51.
Nxf6 {[%clk 0:01:35.9]} 51... Rxc3 {[%clk 0:00:45.2]} 52. Nfd5 {[%clk
0:01:33.3]} 52... Rb3+ {[%clk 0:00:42.1]} 53. Kc4 {[%clk 0:01:32.6]} 53... Ra3
{[%clk 0:00:39.6]} 54. Nxc7 {[%clk 0:01:31.2]} 54... Rxe3 {[%clk 0:00:38.5]} 55.
Nd5 {[%clk 0:01:29.1]} 55... Ra3 {[%clk 0:00:36.4]} 56. Kb4 {[%clk 0:01:28.2]}
56... Ra1 {[%clk 0:00:34.9]} 57. a5 {[%clk 0:01:27.6]} 57... Ke6 {[%clk
0:00:34.5]} 58. Nb6 {[%clk 0:01:26.1]} 58... Ke7 {[%clk 0:00:28]} 59. Kb5 {[%clk
0:01:25.5]} 59... Kd8 {[%clk 0:00:26.3]} 60. Kc6 {[%clk 0:01:24.9]} 60... Rxa5
{[%clk 0:00:23.9]} 61. g5 {[%clk 0:01:24]} 61... Ra1 {[%clk 0:00:21.3]} 62. Nd5
{[%clk 0:01:20.5]} 62... Ra6+ {[%clk 0:00:19.6]} 63. Nb6 {[%clk 0:01:18]} 63...
Ra1 {[%clk 0:00:19.5]} 64. Kd5 {[%clk 0:01:16]} 64... Rg1 {[%clk 0:00:18.3]} 65.
Ke6 {[%clk 0:01:14.4]} 65... Rxg5 {[%clk 0:00:17.2]} 66. c6 {[%clk 0:01:14.1]}
66... Kc7 {[%clk 0:00:16.3]} 67. Nd5+ {[%clk 0:01:06.6]} 67... Kxc6 {[%clk
0:00:16.2]} 68. Ne7+ {[%clk 0:01:05.8]} 68... Kb7 {[%clk 0:00:14]} 69. Kf6
{[%clk 0:01:03.5]} 69... Rg1 {[%clk 0:00:13.9]} 70. Kf5 {[%clk 0:01:02.4]} 70...
Rf1+ {[%clk 0:00:13.8]} 71. Kg4 {[%clk 0:01:02]} 71... Kc7 {[%clk 0:00:13.5]}
72. Ng6 {[%clk 0:01:01]} 72... Kd6 {[%clk 0:00:13.4]} 73. Nh4 {[%clk 0:00:59.8]}
73... Rg1+ {[%clk 0:00:13.3]} 74. Kf3 {[%clk 0:00:58.9]} 74... Ke5 {[%clk
0:00:12.9]} 75. Kf2 {[%clk 0:00:58.1]} 75... Rg8 {[%clk 0:00:12.7]} 76. Nf3+
{[%clk 0:00:57.2]} 76... Kf4 {[%clk 0:00:12.6]} 77. Ke2 {[%clk 0:00:56.4]} 77...
Ra8 {[%clk 0:00:12.4]} 78. Nd2 {[%clk 0:00:55.3]} 78... Ra2 {[%clk 0:00:12.3]}
79. Kd3 {[%clk 0:00:54.7]} 79... Ke5 {[%clk 0:00:11.5]} 80. Nc4+ {[%clk
0:00:53.9]} 80... Kd5 {[%clk 0:00:11.4]} 81. Kc3 {[%clk 0:00:50.7]} 81... Ra8
{[%clk 0:00:11.3]} 82. Nb6+ {[%clk 0:00:49.1]} 82... Kc6 {[%clk 0:00:09.9]} 83.
Nxa8 {[%clk 0:00:49]} 1/2-1/2

[Event "Live Chess"]
[Site "Chess.com"]
[Date "2023.05.21"]
[Round "-"]
[White "hturner40"]
[Black "MaximKris"]
[Result "1-0"]
[WhiteElo "1779"]
[BlackElo "1792"]
[TimeControl "300"]
[EndTime "6:19:58 PDT"]
[Termination "hturner40 won by checkmate"]

1. Nf3 {[%clk 0:04:57.4]} 1... Nc6 {[%clk 0:04:55.4]} 2. e4 {[%clk 0:04:53.4]}
2... e5 {[%clk 0:04:51.4]} 3. c3 {[%clk 0:04:52.1]} 3... Nf6 {[%clk 0:04:49]} 4.
d4 {[%clk 0:04:50.6]} 4... exd4 {[%clk 0:04:48.9]} 5. e5 {[%clk 0:04:48.4]} 5...
Ng8 {[%clk 0:04:47]} 6. cxd4 {[%clk 0:04:46.9]} 6... d6 {[%clk 0:04:45.5]} 7.
Bb5 {[%clk 0:04:43.8]} 7... Bd7 {[%clk 0:04:42.7]} 8. exd6 {[%clk 0:04:37.2]}
8... Bxd6 {[%clk 0:04:40.8]} 9. O-O {[%clk 0:04:36.7]} 9... a6 {[%clk
0:04:35.1]} 10. Re1+ {[%clk 0:04:34]} 10... Nge7 {[%clk 0:04:32.5]} 11. Bd3
{[%clk 0:04:25.5]} 11... O-O {[%clk 0:04:26.8]} 12. Ng5 {[%clk 0:03:40.7]} 12...
g6 {[%clk 0:04:20.9]} 13. Ne4 {[%clk 0:03:16.2]} 13... f5 {[%clk 0:04:07.7]} 14.
Bc4+ {[%clk 0:03:02.3]} 14... Kh8 {[%clk 0:04:04]} 15. Nxd6 {[%clk 0:02:55.7]}
15... cxd6 {[%clk 0:03:51]} 16. Bg5 {[%clk 0:02:53.6]} 16... b5 {[%clk 0:03:28]}
17. Bd5 {[%clk 0:02:49.4]} 17... Rc8 {[%clk 0:03:14.2]} 18. Bxc6 {[%clk
0:02:46]} 18... Rxc6 {[%clk 0:03:08.7]} 19. Bxe7 {[%clk 0:02:44.7]} 19... Re8
{[%clk 0:03:08.4]} 20. Bxd8 {[%clk 0:02:39.7]} 20... Rxe1+ {[%clk 0:03:08.3]}
21. Qxe1 {[%clk 0:02:36.7]} 21... Rc8 {[%clk 0:03:08.2]} 22. Bf6+ {[%clk
0:02:31.2]} 22... Kg8 {[%clk 0:03:06.9]} 23. Nc3 {[%clk 0:02:24.3]} 23... Rf8
{[%clk 0:03:06.8]} 24. Nd5 {[%clk 0:02:03]} 24... Rxf6 {[%clk 0:03:04.6]} 25.
Nxf6+ {[%clk 0:02:00.9]} 25... Kg7 {[%clk 0:03:04.5]} 26. Nxd7 {[%clk
0:01:59.4]} 26... Kh6 {[%clk 0:03:04.4]} 27. h4 {[%clk 0:01:54.4]} 27... Kh5
{[%clk 0:03:01.5]} 28. g3 {[%clk 0:01:51.6]} 28... g5 {[%clk 0:03:00.6]} 29.
Qe2+ {[%clk 0:01:49]} 29... g4 {[%clk 0:02:59.5]} 30. Qe3 {[%clk 0:01:47.2]}
30... f4 {[%clk 0:02:59.4]} 31. Qxf4 {[%clk 0:01:45.3]} 31... Kg6 {[%clk
0:02:58.9]} 32. Qf6+ {[%clk 0:01:43.3]} 32... Kh5 {[%clk 0:02:58]} 33. Qg5#
{[%clk 0:01:42.3]} 1-0